fUSD/lending_fUSD_20250502
["ID","MTS","AMOUNT","RATE_DAILY","PERIOD"]
[359659255,1746227437734,-500.0,0.00019698,2]
[359659256,1746227437744,-493.97951791,0.00019698,2]
[359659257,1746227437871,-6.02048209,0.00019698,2]
[359659258,1746227437881,-500.0,0.00019698,2]
[359659259,1746227437890,-500.0,0.00019698,2]
[359659260,1746227437900,-431.57545899,0.00019698,2]
[359659261,1746227437911,-68.42454101,0.00019698,2]
[359659262,1746227437920,-500.0,0.00019698,2]
[359659263,1746227437930,-133.23946566,0.00019698,2]
[359659265,1746227438259,-366.76053434,0.00019698,2]
[359659266,1746227438268,-500.0,0.00019698,2]
[359659267,1746227438278,-500.0,0.00019698,2]
[359659268,1746227438287,-500.0,0.00019698,2]
[359659269,1746227438296,-500.0,0.00019698,2]
[359659270,1746227438306,-500.0,0.00019698,2]
[359659271,1746227438316,-500.0,0.00019698,2]
[359659272,1746227438325,-500.0,0.00019698,2]
[359659273,1746227438335,-500.0,0.00019698,2]
[359659274,1746227438344,-500.0,0.00019698,2]
[359659275,1746227438354,-500.0,0.00019698,2]
[359659276,1746227438363,-500.0,0.00019698,2]
[359659277,1746227438373,-500.0,0.00019698,2]
[359659278,1746227438382,-305.74723294,0.00019698,2]
[359659292,1746227439877,-194.25276706,0.00019698,2]
[359659294,1746227439887,-500.0,0.00019698,2]
[359659296,1746227439896,-526.93200216,0.00019698,2]
[359659298,1746227439906,-305.72009536,0.00019698,2]
[359659300,1746227439918,-194.27990464,0.00019698,2]
[359659302,1746227439928,-500.0,0.00019698,2]
[359659304,1746227439938,-500.0,0.00019698,2]
[359659306,1746227439947,-500.0,0.00019698,2]
[359659308,1746227439957,-500.0,0.00019698,2]
[359659310,1746227439966,-500.0,0.00019698,2]
[359659312,1746227439975,-411.54310248,0.00019706,2]
[359659314,1746227439984,-1237.89,0.00019706,2]
[359659316,1746227439993,-450.0,0.00019706,2]
[359659318,1746227440003,-500.0,0.00019706,2]
[359659320,1746227440012,-525.84,0.00019706,2]
[359659322,1746227440021,-450.0,0.00019706,2]
[359659324,1746227440031,-450.0,0.00019706,2]
[359659326,1746227440039,-450.0,0.00019706,2]
[359659328,1746227440049,-1015.86,0.00019706,2]
[359659330,1746227440058,-450.0,0.00019706,2]
[359659332,1746227440067,-5010.67,0.00019706,2]
[359659334,1746227440076,-491.49,0.00019706,2]
[359659335,1746227440085,-450.0,0.00019706,2]
[359659337,1746227440095,-450.0,0.00019706,2]
[359659339,1746227440105,-586.22,0.00019706,2]
[359659341,1746227440114,-450.0,0.00019706,2]
[359659343,1746227440123,-1185.43,0.00019706,2]
[359659345,1746227440132,-450.0,0.00019706,2]
[359659347,1746227440142,-450.0,0.00019706,2]
[359659349,1746227440151,-464.24,0.00019706,2]
[359659351,1746227440161,-450.0,0.00019706,2]
[359659353,1746227440171,-544.33,0.00019706,2]
[359659355,1746227440180,-450.0,0.00019706,2]
[359659357,1746227440189,-3373.61,0.00019706,2]
[359659359,1746227440199,-1617.27,0.00019706,2]
[359659361,1746227440209,-450.0,0.00019706,2]
[359659363,1746227440218,-529.7,0.00019706,2]
[359659365,1746227440228,-450.0,0.00019706,2]
[359659366,1746227440237,-450.0,0.00019706,2]
[359659367,1746227440246,-523.26,0.00019706,2]
[359659368,1746227440256,-1037.25,0.00019706,2]
[359659370,1746227440265,-450.0,0.00019706,2]
[359659372,1746227440275,-826.68,0.00019706,2]
[359659374,1746227440284,-450.0,0.00019706,2]
[359659376,1746227440293,-450.0,0.00019706,2]
[359659378,1746227440302,-616.88,0.00019706,2]
[359659380,1746227440312,-450.0,0.00019706,2]
[359659382,1746227440321,-450.0,0.00019706,2]
[359659383,1746227440330,-1593.61,0.00019706,2]
[359659384,1746227440339,-500.0,0.00019706,2]
[359659385,1746227440348,-500.0,0.00019706,2]
[359659386,1746227440358,-541.88181797,0.00019706,2]
[359659387,1746227440367,-212.43129338,0.00019707,2]
[359659388,1746227440376,-450.0,0.00019707,2]
[359659389,1746227440385,-450.0,0.00019707,2]
[359659390,1746227440394,-911.02,0.00019707,2]
[359659391,1746227440403,-450.0,0.00019707,2]
[359659392,1746227440412,-450.0,0.00019707,2]
[359659393,1746227440424,-450.0,0.00019707,2]
[359659394,1746227440434,-450.0,0.00019707,2]
[359659395,1746227440444,-450.0,0.00019707,2]
[359659396,1746227440453,-450.0,0.00019707,2]
[359659397,1746227440463,-450.0,0.00019707,2]
[359659398,1746227440472,-450.0,0.00019707,2]
[359659399,1746227440481,-450.0,0.00019707,2]
[359659400,1746227440491,-450.0,0.00019707,2]
[359659401,1746227440500,-598.99,0.00019707,2]
[359659402,1746227440509,-450.0,0.00019707,2]
[359659403,1746227440519,-450.0,0.00019707,2]
[359659404,1746227440528,-450.0,0.00019707,2]
[359659405,1746227440537,-450.0,0.00019707,2]
[359659406,1746227440546,-747.12,0.00019707,2]
[359659407,1746227440555,-450.0,0.00019707,2]
[359659408,1746227440564,-450.0,0.00019707,2]
[359659409,1746227440575,-450.0,0.00019707,2]
[359659410,1746227440586,-450.0,0.00019707,2]
[359659411,1746227440595,-533.41,0.00019707,2]
[359659412,1746227440604,-450.0,0.00019707,2]
[359659413,1746227440613,-250.0,0.00019707,2]
[359659414,1746227440622,-545.49,0.00019707,2]
[359659415,1746227440631,-450.0,0.00019707,2]
[359659416,1746227440641,-450.0,0.00019707,2]
[359659417,1746227440650,-450.0,0.00019707,2]
[359659418,1746227440660,-450.0,0.00019707,2]
[359659419,1746227440670,-450.0,0.00019707,2]
[359659420,1746227440680,-450.0,0.00019707,2]
[359659421,1746227440690,-450.0,0.00019707,2]
[359659422,1746227440699,-450.0,0.00019707,2]
[359659423,1746227440709,-450.0,0.00019707,2]
[359659424,1746227440719,-450.0,0.00019707,2]
[359659425,1746227440729,-450.0,0.00019707,2]
[359659426,1746227440739,-450.0,0.00019707,2]
[359659427,1746227440749,-450.0,0.00019707,2]
[359659428,1746227440759,-450.0,0.00019707,2]
[359659429,1746227440768,-450.0,0.00019707,2]
[359659430,1746227440778,-450.0,0.00019707,2]
[359659431,1746227440788,-450.0,0.00019707,2]
[359659432,1746227440797,-450.0,0.00019707,2]
[359659433,1746227440807,-450.0,0.00019707,2]
[359659434,1746227440816,-450.0,0.00019707,2]
[359659435,1746227440825,-450.0,0.00019707,2]
[359659436,1746227440835,-880.23,0.00019707,2]
[359659437,1746227440844,-634.8,0.00019707,2]
[359659438,1746227440854,-450.0,0.00019707,2]
[359659439,1746227440864,-450.0,0.00019707,2]
[359659440,1746227440873,-450.0,0.00019707,2]
[359659441,1746227440883,-450.0,0.00019707,2]
[359659442,1746227440892,-450.0,0.00019707,2]
[359659443,1746227440903,-500.0,0.00019707,2]
[359659444,1746227440912,-649.67,0.00019707,2]
[359659445,1746227440921,-450.0,0.00019707,2]
[359659446,1746227440931,-450.0,0.00019707,2]
[359659447,1746227440940,-450.0,0.00019707,2]
[359659448,1746227440951,-450.0,0.00019707,2]
[359659449,1746227440960,-481.19109644,0.00019707,2]
[359659450,1746227440970,-454.69,0.00019707,2]
[359659451,1746227440979,-450.0,0.00019707,2]
[359659452,1746227440989,-450.0,0.00019707,2]
[359659453,1746227440999,-618.55,0.00019707,2]
[359659454,1746227441008,-237.82795749,0.00019707,2]
[359659455,1746227441018,-450.0,0.00019707,2]
[359659456,1746227441027,-450.0,0.00019707,2]
[359659457,1746227441036,-1552.78,0.00019707,2]
[359659458,1746227441046,-450.0,0.00019707,2]
[359659459,1746227441055,-450.0,0.00019707,2]
[359659460,1746227441065,-450.0,0.00019707,2]
[359659461,1746227441074,-450.0,0.00019707,2]
[359659462,1746227441083,-450.0,0.00019707,2]
[359659463,1746227441093,-767.42,0.00019707,2]
[359659464,1746227441103,-581.03,0.00019707,2]
[359659465,1746227441113,-450.0,0.00019707,2]
[359659466,1746227441122,-450.0,0.00019707,2]
[359659467,1746227441131,-450.0,0.00019707,2]
[359659468,1746227441141,-450.0,0.00019707,2]
[359659469,1746227441150,-450.0,0.00019707,2]
[359659470,1746227441160,-450.0,0.00019707,2]
[359659471,1746227441169,-450.0,0.00019707,2]
[359659472,1746227441179,-584.97,0.00019707,2]
[359659473,1746227441188,-450.0,0.00019707,2]
[359659474,1746227441198,-450.0,0.00019707,2]
[359659475,1746227441207,-450.0,0.00019707,2]
[359659476,1746227441217,-450.0,0.00019707,2]
[359659477,1746227441225,-450.0,0.00019707,2]
[359659478,1746227441234,-450.0,0.00019707,2]
[359659479,1746227441244,-450.0,0.00019707,2]
[359659480,1746227441253,-450.0,0.00019707,2]
[359659481,1746227441262,-450.0,0.00019707,2]
[359659482,1746227441271,-563.77,0.00019707,2]
[359659483,1746227441281,-450.0,0.00019707,2]
[359659484,1746227441290,-450.0,0.00019707,2]
[359659485,1746227441300,-450.0,0.00019707,2]
[359659486,1746227441309,-450.0,0.00019707,2]
[359659487,1746227441319,-450.0,0.00019707,2]
[359659488,1746227441328,-450.0,0.00019707,2]
[359659489,1746227441337,-450.0,0.00019707,2]
[359659490,1746227441346,-450.0,0.00019707,2]
[359659491,1746227441355,-628.88,0.00019707,2]
[359659492,1746227441365,-450.0,0.00019707,2]
[359659493,1746227441374,-450.0,0.00019707,2]
[359659494,1746227441384,-450.0,0.00019707,2]
[359659495,1746227441393,-1835.5,0.00019707,2]
[359659496,1746227441402,-450.0,0.00019707,2]
[359659497,1746227441412,-450.0,0.00019707,2]
[359659498,1746227441421,-450.0,0.00019707,2]
[359659499,1746227441431,-450.0,0.00019707,2]
[359659500,1746227441440,-450.0,0.00019707,2]
[359659501,1746227441449,-721.93,0.00019707,2]
[359659502,1746227441459,-450.0,0.00019707,2]
[359659503,1746227441469,-629.07,0.00019707,2]
[359659504,1746227441478,-450.0,0.00019707,2]
[359659505,1746227441487,-450.0,0.00019707,2]
[359659506,1746227441496,-450.0,0.00019707,2]
[359659507,1746227441505,-450.0,0.00019707,2]
[359659508,1746227441514,-450.0,0.00019707,2]
[359659509,1746227441524,-450.0,0.00019707,2]
[359659510,1746227441534,-761.13,0.00019707,2]
[359659511,1746227441543,-812.07,0.00019707,2]
[359659512,1746227441552,-751.36,0.00019707,2]
[359659513,1746227441562,-450.0,0.00019707,2]
[359659514,1746227441571,-450.0,0.00019707,2]
[359659515,1746227441584,-450.0,0.00019707,2]
[359659516,1746227441593,-643.84,0.00019707,2]
[359659517,1746227441603,-450.0,0.00019707,2]
[359659518,1746227441612,-450.0,0.00019707,2]
[359659519,1746227441623,-450.0,0.00019707,2]
[359659520,1746227441633,-504.19,0.00019707,2]
[359659521,1746227441642,-450.0,0.00019707,2]
[359659522,1746227441652,-450.0,0.00019707,2]
[359659523,1746227441663,-450.0,0.00019707,2]
[359659524,1746227441673,-1137.73,0.00019707,2]
[359659525,1746227441682,-450.0,0.00019707,2]
[359659526,1746227441692,-450.0,0.00019707,2]
[359659527,1746227441702,-450.0,0.00019707,2]
[359659528,1746227441711,-756.38,0.00019707,2]
[359659529,1746227441721,-450.0,0.00019707,2]
[359659530,1746227441730,-450.0,0.00019707,2]
[359659531,1746227441740,-450.0,0.00019707,2]
[359659532,1746227441750,-522.41,0.00019707,2]
[359659533,1746227441759,-856.77,0.00019707,2]
[359659534,1746227441769,-450.0,0.00019707,2]
[359659535,1746227441778,-971.41,0.00019707,2]
[359659536,1746227441788,-457.34,0.00019707,2]
[359659537,1746227441798,-518.16,0.00019707,2]
[359659538,1746227441807,-450.0,0.00019707,2]
[359659539,1746227441816,-450.0,0.00019707,2]
[359659540,1746227441826,-1223.14,0.00019707,2]
[359659541,1746227441836,-450.0,0.00019707,2]
[359659542,1746227441845,-450.0,0.00019707,2]
[359659543,1746227441855,-505.8,0.00019707,2]
[359659544,1746227441865,-521.83,0.00019707,2]
[359659545,1746227441875,-3814.14,0.00019707,2]
[359659546,1746227441884,-477.82,0.00019707,2]
[359659547,1746227441893,-450.0,0.00019707,2]
[359659548,1746227441902,-591.87,0.00019707,2]
[359659549,1746227442036,-450.0,0.00019707,2]
[359659550,1746227442046,-4350.56,0.00019707,2]
[359659551,1746227442055,-1612.34,0.00019707,2]
[359659552,1746227442065,-450.0,0.00019707,2]
[359659553,1746227442074,-450.0,0.00019707,2]
[359659554,1746227442083,-450.0,0.00019707,2]
[359659555,1746227442092,-797.54,0.00019707,2]
[359659556,1746227442102,-4221.02,0.00019707,2]
[359659557,1746227442111,-450.0,0.00019707,2]
[359659558,1746227442120,-664.79,0.00019707,2]
[359659559,1746227442130,-450.0,0.00019707,2]
[359659560,1746227442139,-505.69,0.00019707,2]
[359659561,1746227442150,-503.42,0.00019707,2]
[359659562,1746227442159,-473.7,0.00019707,2]
[359659563,1746227442168,-949.41,0.00019707,2]
[359659564,1746227442178,-450.0,0.00019707,2]
[359659565,1746227442188,-450.0,0.00019707,2]
[359659566,1746227442198,-450.0,0.00019707,2]
[359659567,1746227442208,-482.36,0.00019707,2]
[359659568,1746227442220,-1002.89,0.00019707,2]
[359659569,1746227442231,-450.0,0.00019707,2]
[359659570,1746227442241,-450.0,0.00019707,2]
[359659571,1746227442250,-450.0,0.00019707,2]
[359659572,1746227442260,-467.81,0.00019707,2]
[359659573,1746227442270,-640.27,0.00019707,2]
[359659574,1746227442279,-450.0,0.00019707,2]
[359659575,1746227442289,-4726.33,0.00019707,2]
[359659576,1746227442298,-450.0,0.00019707,2]
[359659577,1746227442307,-450.0,0.00019707,2]
[359659578,1746227442316,-232.77923705,0.00019707,2]
[359659579,1746227442326,-450.0,0.00019707,2]
[359659580,1746227442335,-450.0,0.00019707,2]
[359659581,1746227442344,-970.8,0.00019707,2]
[359659582,1746227442354,-491.52,0.00019707,2]
[359659583,1746227442363,-95722.51,0.00019707,2]
[359659584,1746227442373,-450.0,0.00019707,2]
[359659585,1746227442382,-450.0,0.00019707,2]
[359659586,1746227442391,-450.0,0.00019707,2]
[359659587,1746227442400,-450.0,0.00019707,2]
[359659588,1746227442410,-450.0,0.00019707,2]
[359659589,1746227442419,-6083.46,0.00019707,2]
[359659590,1746227442428,-5613.27,0.00019707,2]
[359659591,1746227442437,-450.0,0.00019707,2]
[359659592,1746227442447,-450.0,0.00019707,2]
[359659593,1746227442456,-450.0,0.00019707,2]
[359659594,1746227442465,-473.41,0.00019707,2]
[359659595,1746227442475,-450.0,0.00019707,2]
[359659596,1746227442484,-31030.77,0.00019707,2]
[359659597,1746227442493,-450.0,0.00019707,2]
[359659598,1746227442503,-450.0,0.00019707,2]
[359659599,1746227442513,-450.0,0.00019707,2]
[359659600,1746227442522,-578.14,0.00019707,2]
[359659601,1746227442531,-450.0,0.00019707,2]
[359659602,1746227442541,-450.0,0.00019707,2]
[359659603,1746227442550,-545.77,0.00019707,2]
[359659604,1746227442559,-450.0,0.00019707,2]
[359659605,1746227442568,-471.29,0.00019707,2]
[359659606,1746227442576,-2031.79,0.00019707,2]
[359659607,1746227442586,-450.0,0.00019707,2]
[359659608,1746227442595,-450.0,0.00019707,2]
[359659610,1746227442605,-450.0,0.00019707,2]
[359659611,1746227442615,-994.06,0.00019707,2]
[359659612,1746227442624,-488.62,0.00019707,2]
[359659613,1746227442635,-450.0,0.00019707,2]
[359659614,1746227442645,-1106.44,0.00019707,2]
[359659615,1746227442655,-4160.74,0.00019707,2]
[359659616,1746227442665,-832.02,0.00019707,2]
[359659617,1746227442675,-1100.32,0.00019707,2]
[359659618,1746227442685,-563.55,0.00019707,2]
[359659619,1746227442695,-466.8,0.00019707,2]
[359659620,1746227442705,-450.0,0.00019707,2]
[359659621,1746227442714,-450.0,0.00019707,2]
[359659622,1746227442725,-450.0,0.00019707,2]
[359659623,1746227442735,-624.87,0.00019707,2]
[359659624,1746227442745,-250.69866356,0.00019707,2]
[359659625,1746227442755,-450.0,0.00019707,2]
[359659626,1746227442765,-2296.46,0.00019707,2]
[359659627,1746227442775,-450.0,0.00019707,2]
[359659628,1746227442785,-725.2,0.00019707,2]
[359659629,1746227442795,-500.0,0.00019707,2]
[359659630,1746227442805,-450.0,0.00019707,2]
[359659631,1746227442815,-1628.79,0.00019707,2]
[359659632,1746227442825,-2373.57,0.00019707,2]
[359659633,1746227442835,-516.86,0.00019707,2]
[359659634,1746227442845,-450.0,0.00019707,2]
[359659635,1746227442855,-450.0,0.00019707,2]
[359659636,1746227442865,-450.0,0.00019707,2]
[359659637,1746227442875,-755.37,0.00019707,2]
[359659638,1746227442885,-450.0,0.00019707,2]
[359659639,1746227442895,-450.0,0.00019707,2]
[359659640,1746227442904,-450.0,0.00019707,2]
[359659641,1746227442914,-450.0,0.00019707,2]
[359659642,1746227442924,-450.0,0.00019707,2]
[359659643,1746227442933,-450.0,0.00019707,2]
[359659644,1746227442943,-450.0,0.00019707,2]
[359659645,1746227442952,-450.0,0.00019707,2]
[359659646,1746227442962,-452.78,0.00019707,2]
[359659647,1746227442972,-450.0,0.00019707,2]
[359659648,1746227442981,-516.6,0.00019707,2]
[359659649,1746227442991,-746.61,0.00019707,2]
[359659650,1746227443001,-450.0,0.00019707,2]
[359659651,1746227443011,-459.96,0.00019707,2]
[359659652,1746227443021,-450.0,0.00019707,2]
[359659653,1746227443031,-450.0,0.00019707,2]
[359659654,1746227443040,-599.32,0.00019707,2]
[359659655,1746227443050,-450.0,0.00019707,2]
[359659656,1746227443059,-1934.84,0.00019707,2]
[359659657,1746227443069,-520.96,0.00019707,2]
[359659658,1746227443078,-740.73,0.00019707,2]
[359659659,1746227443088,-450.0,0.00019707,2]
[359659660,1746227443098,-584.0,0.00019707,2]
[359659661,1746227443107,-450.0,0.00019707,2]
[359659662,1746227443117,-301.18044399,0.00019707,2]
[359659663,1746227443126,-450.0,0.00019707,2]
[359659664,1746227443135,-450.0,0.00019707,2]
[359659665,1746227443145,-450.0,0.00019707,2]
[359659666,1746227443155,-662.53,0.00019707,2]
[359659667,1746227443165,-450.0,0.00019707,2]
[359659668,1746227443175,-1507.78,0.00019707,2]
[359659669,1746227443185,-450.0,0.00019708,2]
[359659670,1746227443194,-450.0,0.00019708,2]
[359659671,1746227443205,-587.92,0.00019708,2]
[359659672,1746227443215,-450.0,0.00019708,2]
[359659673,1746227443224,-450.0,0.00019708,2]
[359659674,1746227443234,-450.0,0.00019708,2]
[359659675,1746227443244,-450.0,0.00019708,2]
[359659676,1746227443254,-450.0,0.00019708,2]
[359659677,1746227443264,-450.0,0.00019708,2]
[359659678,1746227443273,-450.0,0.00019708,2]
[359659679,1746227443282,-469.9574106,0.00019708,2]
[359659680,1746227443292,-450.0,0.00019708,2]
[359659681,1746227443302,-450.0,0.00019708,2]
[359659682,1746227443311,-450.0,0.00019708,2]
[359659683,1746227443321,-450.0,0.00019708,2]
[359659684,1746227443331,-450.0,0.00019708,2]
[359659685,1746227443341,-450.0,0.00019708,2]
[359659686,1746227443351,-450.0,0.00019708,2]
[359659687,1746227443360,-450.0,0.00019708,2]
[359659688,1746227443370,-802.69,0.00019708,2]
[359659689,1746227443379,-597.81026485,0.00019708,2]
[359659690,1746227443389,-450.0,0.00019708,2]
[359659691,1746227443399,-556.55,0.00019708,2]
[359659692,1746227443408,-469.39,0.00019708,2]
[359659693,1746227443418,-1010.63,0.00019708,2]
[359659694,1746227443428,-450.0,0.00019708,2]
[359659695,1746227443438,-450.0,0.00019708,2]
[359659696,1746227443447,-450.0,0.00019708,2]
[359659697,1746227443457,-450.0,0.00019708,2]
[359659698,1746227443466,-450.0,0.00019708,2]
[359659699,1746227443476,-300.0,0.00019708,2]
[359659700,1746227443486,-509.32,0.00019708,2]
[359659701,1746227443495,-450.0,0.00019708,2]
[359659702,1746227443506,-841.83,0.00019708,2]
[359659703,1746227443516,-642.81,0.00019708,2]
[359659704,1746227443528,-450.0,0.00019708,2]
[359659705,1746227443538,-450.0,0.00019708,2]
[359659706,1746227443547,-450.0,0.00019708,2]
[359659707,1746227443558,-450.0,0.00019708,2]
[359659708,1746227443568,-450.0,0.00019708,2]
[359659709,1746227443578,-450.0,0.00019708,2]
[359659710,1746227443587,-450.0,0.00019708,2]
[359659711,1746227443597,-450.0,0.00019708,2]
[359659712,1746227443610,-450.0,0.00019708,2]
[359659713,1746227443620,-364.98739259,0.00019708,2]
[359659714,1746227443630,-508.05,0.00019708,2]
[359659715,1746227443640,-450.0,0.00019708,2]
[359659716,1746227443650,-450.0,0.00019708,2]
[359659717,1746227443659,-450.0,0.00019708,2]
[359659718,1746227443669,-2544.85,0.00019708,2]
[359659719,1746227443679,-223.36576253,0.00019708,2]
[359659720,1746227443689,-450.0,0.00019708,2]
[359659721,1746227443700,-450.0,0.00019708,2]
[359659722,1746227443710,-450.0,0.00019708,2]
[359659723,1746227443720,-464.64,0.00019708,2]
[359659724,1746227443730,-1055.79,0.00019708,2]
[359659725,1746227443739,-450.0,0.00019708,2]
[359659726,1746227443750,-450.0,0.00019708,2]
[359659727,1746227443760,-450.0,0.00019708,2]
[359659728,1746227443771,-450.0,0.00019708,2]
[359659729,1746227443782,-450.0,0.00019708,2]
[359659730,1746227443792,-450.0,0.00019708,2]
[359659731,1746227443802,-1097.98,0.00019708,2]
[359659732,1746227443812,-450.0,0.00019708,2]
[359659733,1746227443822,-450.0,0.00019708,2]
[359659734,1746227443831,-450.0,0.00019708,2]
[359659735,1746227443841,-450.0,0.00019708,2]
[359659736,1746227443851,-560.05773253,0.00019708,2]
[359659737,1746227443862,-450.0,0.00019708,2]
[359659738,1746227443872,-450.0,0.00019708,2]
[359659739,1746227443882,-450.0,0.00019708,2]
[359659740,1746227443892,-500.0,0.00019708,2]
[359659741,1746227443902,-500.0,0.0001971,2]
[359659742,1746227443912,-150.38905316,0.0001971,2]
[359659743,1746227443921,-500.0,0.0001971,2]
[359659744,1746227443930,-441.0,0.0001971,2]
[359659745,1746227443940,-500.0,0.0001971,2]
[359659746,1746227443950,-500.0,0.0001971,2]
[359659747,1746227443959,-500.0,0.0001971,2]
[359659748,1746227443969,-500.0,0.0001971,2]
[359659749,1746227443979,-500.0,0.0001971,2]
[359659750,1746227443989,-500.0,0.0001971,2]
[359659751,1746227443999,-151.09399251,0.0001971,2]
[359659752,1746227444008,-150.96083992,0.0001971,2]
[359659753,1746227444019,-150.0,0.0001971,2]
[359659754,1746227444028,-150.79274051,0.0001971,2]
[359659755,1746227444037,-150.0,0.0001971,2]
[359659756,1746227444048,-437.0,0.0001971,2]
[359659757,1746227444057,-154.54925283,0.0001971,2]
[359659758,1746227444067,-500.0,0.0001971,2]
[359659759,1746227444082,-150.0,0.0001971,2]
[359659760,1746227444092,-500.0,0.0001971,2]
[359659761,1746227444102,-150.97981124,0.00019714,2]
[359659762,1746227444111,-500.0,0.00019714,2]
[359659763,1746227444121,-150.0,0.00019714,2]
[359659764,1746227444131,-150.0,0.0001973,2]
[359659765,1746227444142,-150.0,0.00019734,2]
[359659766,1746227444153,-3635.1469171,0.00019737,2]
[359659767,1746227444163,-2653.89989039,0.00019737,2]
[359659768,1746227444173,-150.0,0.00019743,2]
[359659769,1746227444183,-150.0,0.00019747,2]
[359659770,1746227444193,-155.96257902,0.00019751,2]
[359659771,1746227444203,-150.0,0.00019756,2]
[359659772,1746227444213,-3635.1469171,0.0001977,2]
[359659773,1746227444225,-2653.89989039,0.0001977,2]
[359659774,1746227444235,-500.0,0.00019773,2]
[359659775,1746227444245,-500.0,0.00019773,2]
[359659776,1746227444255,-505.12152298,0.00019773,2]
[359659777,1746227444265,-501.47327578,0.00019773,2]
[359659778,1746227444275,-500.0,0.00019773,2]
[359659779,1746227444285,-165.99958587,0.00019773,2]
[359659780,1746227444294,-368.87036061,0.00019773,2]
[359659781,1746227444304,-500.0,0.00019773,2]
[359659782,1746227444313,-500.0,0.00019773,2]
[359659783,1746227444323,-500.0,0.00019773,2]
[359659784,1746227444332,-500.0,0.00019773,2]
[359659785,1746227444341,-500.0,0.00019773,2]
[359659786,1746227444351,-515.34803,0.00019773,2]
[359659787,1746227444361,-500.0,0.00019773,2]
[359659788,1746227444370,-500.0,0.00019773,2]
[359659789,1746227444379,-500.0,0.00019773,2]
[359659790,1746227444389,-500.0,0.00019773,2]
[359659791,1746227444398,-162.15598987,0.00019773,2]
[359659792,1746227444407,-500.0,0.00019773,2]
[359659793,1746227444417,-150.0,0.00019775,2]
[359659794,1746227444426,-12500.0,0.00019777,2]
[359659795,1746227444435,-19453.42073564,0.00019778,2]
[359659796,1746227444444,-150.0,0.00019781,2]
[359659797,1746227444454,-12500.0,0.00019786,2]
[359659798,1746227444463,-12500.0,0.00019794,2]
[359659799,1746227444473,-471.0796644,0.00019798,2]
[359659800,1746227444483,-450.0,0.00019798,2]
[359659801,1746227444492,-450.0,0.00019798,2]
[359659802,1746227444502,-1105.4161288,0.00019799,2]
[359659803,1746227444511,-150.0,0.000198,2]
[359659804,1746227444521,-150.0,0.00019801,2]
[359659805,1746227444531,-3635.1469171,0.00019802,2]
[359659806,1746227444540,-2653.89989039,0.00019802,2]
[359659807,1746227444550,-150.0,0.00019803,2]
[359659808,1746227444855,-150.0,0.00019803,2]
[359659809,1746227444866,-12500.0,0.00019803,2]
[359659810,1746227444878,-150.0,0.00019805,2]
[359659811,1746227444888,-150.0,0.00019805,2]
[359659812,1746227444897,-150.0,0.00019806,2]